bitfinex/quotes_ETHUSD_20240928
["timestamp","ask_amount","ask_price","bid_price","bid_amount"]
[1727485573999,1.16321814,2701.7,2701.6,0.07365331]
[1727485574799,1.16321814,2701.8,2701.6,0.07365331]
[1727485575703,1.16321814,2701.7,2701.6,0.07365331]
[1727485576112,1.97361814,2701.7,2701.6,0.07365331]
[1727485581994,0.8104,2701.7,2701.6,0.07365331]
[1727485582290,1.97408691,2701.7,2701.6,0.07365331]
[1727485583290,1.16368691,2701.7,2701.6,0.07365331]
[1727485587522,1.55285387,2701.8,2701.6,0.07365331]
[1727485587724,1.98306368,2701.7,2701.6,0.07365331]
[1727485588035,1.98306368,2701.7,2701.4,5.3621343]
[1727485588235,1.55285387,2701.7,2701.6,0.07385025]
[1727485588420,1.55285387,2701.7,2701.5,0.07396287]
[1727485588627,1.55285387,2701.7,2701.6,0.07385025]
[1727485588824,1.78917926,2701.7,2701.6,0.07385025]
[1727485589003,1.78917926,2701.7,2701.4,5.3621343]
[1727485589205,1.16332708,2701.6,2701.4,5.3621343]
[1727485589433,1.16332708,2701.6,2701.5,3.70164]
[1727485591214,1.55285387,2701.7,2701.5,3.70164]
[1727485592453,1.16328237,2701.6,2701.5,3.70164]
[1727485593404,1.16335121,2701.6,2701.5,3.70164]
[1727485594546,1.16329539,2701.6,2701.5,3.70164]
[1727485594906,1.55285387,2701.6,2701.3,5.3622543]
[1727485595244,1.16333002,2701.5,2701.3,5.3622543]
[1727485595541,1.16333002,2701.5,2701.3,1.6604243]
[1727485595745,1.43494841,2701.4,2701.1,3.70213]
[1727485596048,1.43494841,2701.4,2701.1,5.3625543]
[1727485596446,1.16333002,2701.3,2701.1,9.0646443]
[1727485596646,1.16333002,2701.4,2701.1,5.3625143]
[1727485597357,1.16333002,2701.4,2701.2,0.0743835]
[1727485598036,1.16333002,2701.3,2701.2,0.0743835]
[1727485598419,1.16333002,2701.4,2701.2,0.0743835]
[1727485599355,0.7551,2701.3,2701.2,0.0743835]
[1727485599754,1.91843002,2701.3,2701.2,0.0743835]
[1727485599995,5.5537952,2701.3,2701.2,0.0743835]
[1727485600274,7.49261253,2701.3,2700.7,5.3630643]
[1727485600426,1.16378914,2701.0,2700.7,5.3630643]
[1727485600625,1.16378914,2701.1,2700.8,0.07499965]
[1727485601023,1.16378914,2701.1,2700.7,5.3630643]
[1727485601024,1.16378914,2701.1,2700.7,9.0657143]
[1727485601230,1.16378914,2701.0,2700.7,9.0657143]
[1727485601467,1.16378914,2701.1,2700.8,0.07499965]
[1727485602427,1.91888914,2701.0,2700.8,0.07499965]
[1727485606835,0.7551,2701.0,2700.8,0.07499965]
[1727485607684,5.34431886,2700.9,2700.8,0.07499965]
[1727485607980,3.7926,2700.9,2700.4,1.6604243]
[1727485608147,4.16258771,2700.8,2700.4,1.6604243]
[1727485608349,4.16258771,2700.8,2700.5,0.07573179]
[1727485609236,0.65069066,2700.7,2700.5,0.04728607]
[1727485609438,0.65069066,2700.7,2700.5,0.0746709]
[1727485616980,0.65069066,2700.7,2700.6,1.6604243]
[1727485617181,4.16258771,2700.8,2700.6,1.6604243]
[1727485617384,1.16258771,2700.8,2700.6,1.6604243]
[1727485617590,1.16258771,2700.8,2700.7,0.0745582]
[1727485621288,1.16258771,2700.8,2700.7,4.5293982]
[1727485621449,1.16258771,2700.8,2700.7,0.8266582]
[1727485622262,1.16258771,2700.8,2700.7,4.5293982]
[1727485623586,4.16258771,2701.2,2700.7,8.2321382]
[1727485623755,4.16258771,2701.2,2700.8,1.6604243]
[1727485623957,5.85365537,2701.2,2700.8,1.6604243]
[1727485624192,9.55571537,2701.2,2700.9,0.07448263]
[1727485626560,13.25785537,2701.2,2700.9,0.07448263]
[1727485626761,9.55571537,2701.2,2700.9,0.07448263]
[1727485628565,1.16258771,2701.1,2700.9,0.07448263]
[1727485628883,1.16258771,2701.1,2700.8,1.6604243]
[1727485629258,1.16258771,2701.1,2700.9,0.07295072]
[1727485629459,2.27333113,2701.1,2700.9,0.07295072]
[1727485629703,2.27333113,2701.1,2700.8,1.6604243]
[1727485630039,2.27333113,2701.1,2700.9,0.07295072]
[1727485630404,2.27333113,2701.1,2700.8,1.6604243]
[1727485630911,1.11074342,2701.1,2700.9,0.07295072]
[1727485631199,2.85365537,2701.2,2701.0,0.7968]
[1727485631396,1.16258771,2701.1,2701.0,0.86963805]
[1727485631796,1.16258771,2701.1,2700.8,1.6604243]
[1727485632100,1.16258771,2701.1,2701.0,0.07283805]
[1727485632261,2.16710991,2701.1,2700.9,0.07295072]
[1727485632462,1.16258771,2701.1,2700.8,6.1598043]
[1727485632987,1.16258771,2701.1,2700.9,0.07295072]
[1727485634184,1.16258771,2701.1,2701.0,1.6604243]
[1727485634421,1.16258771,2701.2,2701.0,1.6604243]
[1727485634619,1.16258771,2701.2,2701.0,1.73308892]
[1727485635626,1.16258771,2701.2,2701.0,0.07266462]
[1727485635923,1.70705715,2701.2,2701.0,0.07266462]
[1727485636800,1.16258771,2701.1,2701.0,0.07266462]
[1727485637198,1.16258771,2701.2,2701.0,0.07266462]
[1727485637555,1.16258771,2701.2,2701.0,1.73308892]
[1727485637686,1.16258771,2701.1,2701.0,1.73308892]
[1727485638710,1.16258771,2701.1,2701.0,5.43541892]
[1727485638912,1.16258771,2701.1,2701.0,1.73308892]
[1727485640428,1.55171886,2701.2,2701.0,1.73308892]
[1727485640924,1.16463632,2701.1,2701.0,1.73308892]
[1727485641128,1.55171886,2701.2,2701.0,1.73308892]
[1727485641334,1.16464366,2701.1,2701.0,1.73308892]
[1727485641541,1.55171886,2701.1,2701.0,1.73308892]
[1727485643000,1.55171886,2701.1,2701.0,5.43541892]
[1727485643249,1.55171886,2701.2,2701.0,5.43541892]
[1727485643822,1.16531147,2701.1,2701.0,6.23221892]
[1727485644022,1.55171886,2701.2,2701.0,6.23221892]
[1727485644023,1.16531147,2701.2,2701.1,3.70219]
[1727485644235,1.16531147,2701.3,2701.2,3.70205]
[1727485644538,1.16531147,2701.3,2701.2,5.43472837]
[1727485644743,1.16531147,2701.3,2701.2,6.19942837]
[1727485644929,1.16531147,2701.4,2701.3,4.46662]
[1727485645439,1.16531147,2701.5,2701.3,0.83684142]
[1727485645645,1.16531147,2701.6,2701.5,3.70164]
[1727485645942,1.16531147,2701.6,2701.5,4.46634]
[1727485646245,1.55171886,2701.6,2701.5,4.53825615]
[1727485646607,1.16505273,2701.6,2701.5,4.53825615]
[1727485647035,1.16513103,2701.6,2701.5,0.83661615]
[1727485647209,1.55171886,2701.6,2701.5,0.07191615]
[1727485647633,1.55171886,2701.7,2701.5,0.07191615]
[1727485647837,1.55171886,2701.6,2701.5,0.07191615]
[1727485648025,2.11606966,2701.7,2701.5,0.07191615]
[1727485648535,1.55171886,2701.7,2701.5,0.07191615]
[1727485648700,1.16471762,2701.6,2701.5,0.07191615]
[1727485649348,1.16485509,2701.6,2701.5,0.07191615]
[1727485649845,1.16485509,2701.7,2701.5,0.07191615]
[1727485650064,1.16485509,2701.6,2701.5,0.07191615]
[1727485650559,1.16485509,2701.7,2701.5,0.07191615]
[1727485650714,1.88437978,2701.7,2701.5,0.07191615]
[1727485651648,1.16485509,2701.6,2701.5,0.07191615]
[1727485656665,1.16450179,2701.6,2701.5,0.07191615]
[1727485657166,1.55171886,2701.7,2701.5,0.07191615]
[1727485657335,1.1644981,2701.6,2701.5,0.07191615]
[1727485657537,1.55171886,2701.7,2701.5,0.07191615]
[1727485657764,1.55171886,2701.6,2701.5,0.07191615]
[1727485658132,1.55171886,2701.7,2701.5,0.07191615]
[1727485659534,1.55171886,2701.7,2701.6,1.6604243]
[1727485659782,1.55171886,2701.8,2701.6,1.6604243]
[1727485659959,1.55171886,2701.7,2701.6,1.7319323]
[1727485660635,1.16482718,2701.7,2701.6,2.4966323]
[1727485660834,1.16482494,2701.7,2701.6,6.1981423]
[1727485662067,1.16482494,2701.7,2701.6,5.4334423]
[1727485676008,1.55171886,2701.7,2701.6,5.4334423]
[1727485676295,1.55171886,2701.8,2701.6,5.4334423]
[1727485677000,1.16497205,2701.7,2701.6,5.4334423]
[1727485677666,1.55171886,2701.8,2701.6,5.4334423]
[1727485678397,1.16508403,2701.7,2701.6,5.4334423]
[1727485678604,1.55171886,2701.8,2701.6,5.4334423]
[1727485679800,1.55171886,2701.7,2701.6,5.4334423]
[1727485681411,1.55171886,2701.7,2701.6,1.7319323]
[1727485681700,1.55171886,2701.7,2701.6,0.071508]
[1727485681701,1.98333538,2701.7,2701.6,0.071508]
[1727485681910,1.98333538,2701.7,2701.4,3.70177]
[1727485682216,1.16561042,2701.5,2701.4,3.70177]
[1727485684484,1.55416174,2701.6,2701.4,3.70177]
[1727485685912,1.94314471,2701.5,2701.2,3.70197]
[1727485686213,1.55514105,2701.3,2700.9,2.4929243]
[1727485686368,1.55522211,2701.2,2701.1,3.70219]
[1727485687383,1.55522211,2701.2,2701.1,3.77185344]
[1727485687583,1.55522211,2701.2,2701.1,0.06966344]
[1727485687788,2.76634471,2701.3,2701.1,0.06966344]
[1727485687994,1.55563405,2701.2,2701.1,0.06966344]
[1727485688515,3.30774647,2701.3,2701.1,0.06966344]
[1727485689218,1.55581568,2701.2,2701.1,0.06966344]
[1727485689376,2.76634471,2701.3,2701.1,0.06966344]
[1727485689776,1.55593179,2701.2,2701.1,0.06966344]
[1727485690878,1.55593179,2701.2,2701.1,3.77185344]
[1727485695981,2.37913179,2701.3,2701.1,3.77185344]
[1727485696581,1.55593179,2701.2,2701.1,3.77185344]
[1727485697326,2.37913179,2701.3,2701.1,3.77185344]
[1727485697643,1.55593179,2701.2,2701.1,3.77185344]
[1727485697824,2.37913179,2701.3,2701.1,3.77185344]
[1727485698027,1.55593179,2701.2,2701.1,3.77185344]
[1727485698394,2.37913179,2701.3,2701.1,3.77185344]
[1727485698593,1.55593179,2701.2,2701.1,3.77185344]
[1727485698895,2.37913179,2701.3,2701.1,3.77185344]
[1727485699101,1.55593179,2701.3,2701.2,5.3624743]
[1727485699418,1.16611782,2701.4,2701.3,3.70192]
[1727485699631,1.16611782,2701.4,2701.3,5.3623443]
[1727485699812,1.16611782,2701.4,2701.3,5.43192393]
[1727485701533,1.55593179,2701.5,2701.3,5.43192393]
[1727485702433,1.1660499,2701.4,2701.3,5.43192393]
[1727485702652,1.55593179,2701.5,2701.3,5.43192393]
[1727485703232,1.55593179,2701.4,2701.3,5.43192393]
[1727485703816,1.16603588,2701.4,2701.3,5.43192393]
[1727485703999,1.16604424,2701.4,2701.3,5.43192393]
[1727485704201,1.16606971,2701.4,2701.3,5.43192393]
[1727485704454,1.55593179,2701.5,2701.3,5.43192393]
[1727485704657,1.16604044,2701.4,2701.3,5.43192393]
[1727485704938,1.55593179,2701.5,2701.3,5.43192393]
[1727485705182,1.55593179,2701.4,2701.3,5.43192393]
[1727485705443,1.55593179,2701.5,2701.3,5.43192393]
[1727485705800,1.1660313,2701.4,2701.3,5.43192393]
[1727485706202,1.55593179,2701.4,2701.3,5.43192393]
[1727485706402,1.55593179,2701.5,2701.3,5.43192393]
[1727485706635,0.8135,2701.4,2701.3,1.73000393]
[1727485706853,2.36943179,2701.4,2701.3,1.73000393]
[1727485707033,2.36943179,2701.4,2701.3,0.06957963]
[1727485707203,2.36943179,2701.4,2701.2,3.70205]
[1727485707405,1.55593179,2701.3,2701.0,5.3627243]
[1727485707723,2.75695092,2701.4,2701.0,5.3627243]
[1727485707724,1.16614888,2701.1,2701.0,5.3627243]
[1727485710933,1.16614888,2701.2,2701.1,3.70219]
[1727485713972,1.55593179,2701.3,2701.1,3.70219]
[1727485714178,1.16617427,2701.2,2701.1,3.70219]
[1727485715339,1.16621789,2701.2,2701.1,7.40438]
[1727485715643,1.16625023,2701.2,2701.1,3.70219]
[1727485716665,1.16625023,2701.3,2701.1,3.70219]
[1727485716839,1.16625023,2701.3,2701.2,6.1236743]
[1727485717036,1.55593179,2701.5,2701.3,3.70192]
[1727485717335,1.55593179,2701.5,2701.4,1.72989127]
[1727485718648,1.55593179,2701.5,2701.4,5.43167127]
[1727485719038,1.16626994,2701.5,2701.4,5.43167127]
[1727485719767,1.55593179,2701.6,2701.4,5.43167127]
[1727485719948,1.1662505,2701.5,2701.4,5.43167127]
[1727485721180,1.1662505,2701.5,2701.4,0.06946697]
[1727485721408,1.55593179,2701.5,2701.4,0.06946697]
[1727485721678,1.55593179,2701.5,2701.2,5.3623843]
[1727485721864,1.16629453,2701.4,2701.3,0.06946563]
[1727485722065,1.16629453,2701.4,2701.2,5.3623843]
[1727485722367,1.16629453,2701.4,2701.3,0.06946563]
[1727485723076,1.16629453,2701.4,2701.2,5.3623843]
[1727485723237,1.16629453,2701.4,2701.3,0.06946563]
[1727485723438,1.16629453,2701.4,2701.2,5.3623843]
[1727485723643,1.16629453,2701.3,2701.2,5.3623843]
[1727485731703,1.55593179,2701.4,2701.3,3.70192]
[1727485732495,1.55593179,2701.4,2701.3,3.7714053]
[1727485733301,1.55593179,2701.4,2701.3,4.5984053]
[1727485733302,1.16668005,2701.4,2701.3,4.5984053]
[1727485733497,1.16663471,2701.5,2701.4,3.70178]
[1727485733702,1.16663471,2701.6,2701.5,3.70164]
[1727485733994,1.55593179,2701.7,2701.6,3.70151]
[1727485734206,1.55593179,2701.7,2701.6,5.3619343]
[1727485734355,1.55593179,2701.7,2701.6,5.4310817]
[1727485734998,1.55593179,2701.8,2701.6,5.4310817]
[1727485735252,1.55593179,2701.8,2701.7,4.52837]
[1727485735557,1.94456168,2701.9,2701.7,0.89603479]
[1727485735761,1.94456168,2701.9,2701.8,5.3616543]
[1727485736161,1.94456168,2701.9,2701.8,5.43057648]
[1727485736363,1.94456168,2701.9,2701.8,1.72934648]
[1727485737364,5.67236525,2701.9,2701.8,1.72934648]
[1727485737568,1.94456168,2701.9,2701.8,1.72934648]
[1727485737861,3.0,2702.0,2701.8,1.72934648]
[1727485738090,5.33234595,2702.1,2701.8,1.6604243]
[1727485738803,3.0,2702.1,2701.8,1.6604243]
[1727485739021,6.45090418,2702.1,2701.8,1.6604243]
[1727485739217,6.45090418,2702.1,2701.9,0.06880958]
[1727485739387,6.45090418,2702.1,2701.8,1.6604243]
[1727485739593,1.94349429,2701.9,2701.8,1.6604243]
[1727485739906,6.45090418,2702.1,2701.8,1.6604243]
[1727485740479,4.94353828,2701.9,2701.6,1.6604243]
[1727485740680,1.94353828,2701.8,2701.7,0.06903479]
[1727485740883,1.94361661,2701.8,2701.4,1.6604243]
[1727485741126,1.16616253,2701.5,2701.4,1.6604243]
[1727485741282,1.55488337,2701.6,2701.4,1.6604243]
[1727485742731,1.55488337,2701.5,2701.4,1.6604243]
[1727485743486,1.16633965,2701.5,2701.4,1.6604243]
[1727485743996,1.55488337,2701.5,2701.4,1.6604243]
[1727485744196,2.72861622,2701.7,2701.4,5.3622043]
[1727485744197,1.55488337,2701.6,2701.4,5.3622043]
[1727485744514,1.16635332,2701.5,2701.4,5.3622043]
[1727485744819,1.16636613,2701.5,2701.4,5.3622043]
[1727485744983,1.16635151,2701.5,2701.4,5.3622043]
[1727485745180,1.16636908,2701.5,2701.4,5.3622043]
[1727485745581,1.55488337,2701.5,2701.4,5.3622043]
[1727485745781,1.55488337,2701.6,2701.4,5.3622043]
[1727485746208,1.55488337,2701.5,2701.4,5.3622043]
[1727485747336,1.55488337,2701.5,2701.4,5.4315062]
[1727485748093,1.55488337,2701.5,2701.4,1.7297262]
[1727485748291,1.55488337,2701.5,2701.4,1.6604243]
[1727485748538,1.55488337,2701.5,2701.4,1.72972227]
[1727485749590,1.55488337,2701.5,2701.4,5.43150227]
[1727485749794,1.55488337,2701.5,2701.4,1.72972227]
[1727485750105,1.55488337,2701.6,2701.4,1.72857158]
[1727485750311,1.55488337,2701.5,2701.4,1.72857158]
[1727485751801,1.16641688,2701.5,2701.4,1.72857158]
[1727485752138,1.55488337,2701.5,2701.4,1.72857158]
[1727485752809,1.82777303,2701.6,2701.4,1.72857158]
[1727485753935,1.55488337,2701.5,2701.4,1.72857158]
[1727485756644,1.94450815,2701.5,2701.4,1.72857158]
[1727485759148,1.94450815,2701.5,2701.4,6.19625158]
[1727485759311,1.55575665,2701.5,2701.4,6.19625158]
[1727485759510,1.94450815,2701.7,2701.5,3.70164]
[1727485759711,1.94450815,2701.7,2701.6,1.72965032]
[1727485761214,1.94497569,2701.7,2701.6,1.72965032]
[1727485761561,1.94497784,2701.7,2701.6,1.72965032]
[1727485762363,1.9450984,2701.7,2701.6,5.43116032]
[1727485762729,1.94508074,2701.7,2701.6,5.43116032]
[1727485762951,1.94507867,2701.7,2701.6,5.43116032]
[1727485763142,5.33340978,2701.9,2701.6,5.43116032]
[1727485763345,1.94505858,2701.7,2701.6,5.43116032]
[1727485763660,5.33340978,2701.9,2701.6,1.72965032]
[1727485763865,0.60990098,2701.8,2701.6,1.72965032]
[1727485764159,0.60990098,2701.8,2701.6,1.6604243]
[1727485764160,1.94509314,2701.7,2701.6,1.6604243]
[1727485764327,0.60990098,2701.8,2701.6,1.6604243]
[1727485766062,1.94510594,2701.7,2701.6,1.6604243]
[1727485766265,0.60990098,2701.8,2701.6,1.6604243]
[1727485766439,5.33412712,2701.9,2701.6,1.6604243]
[1727485767575,1.94510659,2701.7,2701.6,1.6604243]
[1727485767736,5.33412712,2701.9,2701.6,1.6604243]
[1727485768070,1.94506146,2701.7,2701.6,1.6604243]
[1727485768272,5.33412712,2701.9,2701.6,1.6604243]
[1727485768577,6.31419683,2701.9,2701.6,1.6604243]
[1727485770288,2.33412712,2701.8,2701.6,1.6604243]
[1727485770771,6.31419683,2701.9,2701.6,1.6604243]
[1727485771349,2.33412712,2701.8,2701.6,1.6604243]
[1727485771573,6.31419683,2701.9,2701.6,1.6604243]
[1727485772584,2.33412712,2701.8,2701.6,1.6604243]
[1727485773152,6.31419683,2701.9,2701.6,1.6604243]
[1727485773780,2.33412712,2701.8,2701.6,1.6604243]
[1727485773987,6.31419683,2701.9,2701.6,1.6604243]
[1727485774483,2.33412712,2701.8,2701.6,1.6604243]
[1727485775775,3.98006971,2701.9,2701.6,1.6604243]
[1727485775776,6.31419683,2701.9,2701.6,1.6604243]
[1727485775972,2.33412712,2701.8,2701.6,1.6604243]
[1727485776453,6.31419683,2701.9,2701.6,1.6604243]
[1727485776971,2.33412712,2702.0,2701.8,1.6604243]
[1727485777177,5.33412712,2702.1,2701.8,1.6604243]
[1727485777372,2.33412712,2702.0,2701.9,0.06874276]
[1727485777801,6.35751895,2702.1,2701.9,0.06874276]
[1727485777991,2.33412712,2702.0,2701.9,0.06874276]
[1727485778867,6.35751895,2702.1,2701.9,0.06874276]
[1727485779198,2.8174863,2702.0,2701.9,0.06874276]
[1727485779402,5.8174863,2702.0,2701.9,0.06874276]
[1727485781002,5.81741314,2702.0,2701.9,0.06874276]
[1727485781200,5.33405396,2702.0,2701.9,0.06874276]
[1727485781506,2.33405396,2702.0,2701.9,0.06874276]
[1727485781665,2.33405396,2702.1,2702.0,0.7866]
[1727485781864,2.72306296,2702.3,2702.0,2.5155955]
[1727485781865,2.33405396,2702.3,2702.0,2.5155955]
[1727485782101,2.33405396,2702.4,2702.2,1.6604243]
[1727485782307,2.33405396,2702.5,2702.3,1.6604243]
[1727485782505,1.94482528,2702.4,2702.3,9.8481243]
[1727485782705,2.33405396,2702.8,2702.4,3.70041]
[1727485782706,3.49954058,2702.5,2702.4,3.70041]
[1727485783019,1.5547153,2702.5,2702.4,5.42885305]
[1727485783366,1.16603045,2702.5,2702.4,5.42885305]
[1727485783568,1.16529791,2702.5,2702.4,5.3608343]
[1727485783772,1.5547153,2702.6,2702.4,1.72844305]
[1727485784094,1.5547153,2702.6,2702.4,5.3608343]
[1727485784095,1.16530804,2702.5,2702.4,5.3608343]
[1727485784424,1.16530804,2702.5,2702.4,5.42885305]
[1727485784595,1.16530804,2702.6,2702.5,3.70027]
[1727485785593,5.72002334,2702.7,2702.4,1.6604243]
[1727485785917,1.16530804,2702.6,2702.5,0.0679062]
[1727485786508,1.16530804,2702.6,2702.5,3.7681762]
[1727485787095,4.16530804,2702.7,2702.5,3.7681762]
[1727485787291,4.16530804,2702.7,2702.6,1.6604243]
[1727485787292,1.5547153,2702.7,2702.6,1.6604243]
[1727485787504,3.0,2702.7,2702.6,1.72796653]
[1727485787709,4.16364228,2702.7,2702.6,1.72796653]
[1727485788988,1.16364228,2702.7,2702.6,1.72796653]
[1727485789530,1.16364228,2702.8,2702.6,1.72796653]
[1727485789884,1.16364228,2702.7,2702.6,1.72796653]
[1727485790084,1.16364228,2702.8,2702.6,1.72796653]
[1727485793883,3.0,2702.9,2702.6,1.72796653]
[1727485793884,4.16364228,2702.9,2702.6,1.72796653]
[1727485794084,5.26393646,2702.9,2702.6,1.72796653]
[1727485795137,4.10029418,2702.9,2702.6,1.72796653]
[1727485795286,5.26393646,2702.9,2702.6,1.72796653]
[1727485795527,4.10029418,2702.9,2702.6,1.72796653]
[1727485796063,5.26393646,2702.9,2702.6,1.72796653]
[1727485797440,4.10029418,2702.9,2702.6,1.72796653]
[1727485800755,4.16364228,2703.1,2702.8,1.6604243]
[1727485801076,1.5547153,2703.3,2703.0,1.6604243]
[1727485801077,1.16364228,2703.3,2703.0,1.6604243]
[1727485801235,1.08806102,2703.2,2703.0,1.6604243]
[1727485801435,1.08806102,2703.2,2703.1,0.06657504]
[1727485801772,9.35204228,2703.4,2703.1,0.06657504]
[1727485801968,9.35204228,2703.4,2703.0,1.6604243]
[1727485802174,3.0,2703.3,2703.0,1.6604243]
[1727485802833,6.6992,2703.3,2703.0,1.6604243]
[1727485803036,8.08988176,2703.3,2703.0,1.6604243]
[1727485803473,4.39068176,2703.3,2703.0,1.6604243]
[1727485803853,4.39068176,2703.3,2703.1,0.06657504]
[1727485804266,4.39068176,2703.3,2703.0,1.6604243]
[1727485804473,4.39068176,2703.3,2703.2,0.06646255]
[1727485804968,4.39068176,2703.3,2703.0,1.6604243]
[1727485805159,4.39068176,2703.3,2703.1,0.06657504]
[1727485807142,8.08989176,2703.3,2703.1,0.06657504]
[1727485807565,4.39068176,2703.3,2703.1,0.06657504]
[1727485807968,8.08986176,2703.3,2703.1,0.06657504]
[1727485808485,4.39068176,2703.3,2703.1,0.06657504]
[1727485808778,3.0,2703.5,2703.2,1.6604243]
[1727485808985,5.66717228,2703.6,2703.3,0.06600061]
[1727485809202,6.95262326,2703.6,2703.2,1.6604243]
[1727485809371,5.78898098,2703.6,2703.3,0.06600061]
[1727485809577,6.95262326,2703.6,2703.2,1.6604243]
[1727485809896,6.95262326,2703.6,2703.3,0.06597705]
[1727485810065,10.65148326,2703.6,2703.3,0.06597705]
[1727485810272,10.65148326,2703.6,2703.2,1.6604243]
[1727485810472,6.95262326,2703.6,2703.4,0.06586458]
[1727485810674,6.95262326,2703.6,2703.3,0.06597705]
[1727485811195,6.95262326,2703.6,2703.4,0.06586458]
[1727485811353,6.95262326,2703.6,2703.2,1.6604243]
[1727485811554,6.95262326,2703.6,2703.3,0.06597705]
[1727485811782,6.95262326,2703.6,2703.2,1.6604243]
[1727485811981,6.95262326,2703.6,2703.3,0.06597705]
[1727485812209,6.95262326,2703.6,2703.2,1.6604243]
[1727485812358,6.95262326,2703.6,2703.3,0.06597705]
[1727485812359,10.65149326,2703.6,2703.3,0.06597705]
[1727485812564,6.95262326,2703.6,2703.2,1.6604243]
[1727485812759,6.95262326,2703.6,2703.3,0.06597705]
[1727485812961,6.95262326,2703.6,2703.2,1.6604243]
[1727485813196,10.65148326,2703.6,2703.3,0.06597705]
[1727485813498,5.78898098,2703.6,2703.2,1.6604243]
[1727485813692,3.25379326,2703.6,2703.4,0.06586458]
[1727485813892,3.25379326,2703.6,2703.2,1.6604243]
[1727485813893,8.78897098,2703.6,2703.3,0.06597705]
[1727485814095,8.78897098,2703.6,2703.5,0.06575211]
[1727485814302,8.78897098,2703.6,2703.4,0.06586458]
[1727485814604,8.78897098,2703.6,2703.5,0.06575211]
[1727485814813,8.78897098,2703.6,2703.2,1.6604243]
[1727485814983,8.78897098,2703.6,2703.5,0.06575211]
[1727485815306,8.78897098,2703.6,2703.2,1.6604243]
[1727485815307,1.28545098,2703.6,2703.4,1.6604243]
[1727485815508,0.8047,2703.8,2703.5,0.06575211]
[1727485816610,1.16364228,2703.9,2703.6,1.6604243]
[1727485816906,1.16364228,2703.9,2703.7,0.06546047]
[1727485817207,3.8047,2704.0,2703.7,0.06546047]
[1727485817208,4.96834228,2704.0,2703.7,0.06546047]
[1727485818606,5.99045904,2704.0,2703.7,0.06546047]
[1727485821304,1.16364228,2703.9,2703.6,5.3591843]
[1727485821740,5.99045904,2704.0,2703.6,5.3591843]
[1727485822602,1.16364228,2703.9,2703.6,5.3591843]
[1727485825025,1.16364228,2703.9,2703.7,0.06520927]
[1727485826598,1.16364228,2703.9,2703.6,5.3591043]
[1727485826820,1.16364228,2703.9,2703.7,0.06520927]
[1727485827648,1.16364228,2703.8,2703.7,0.06520927]
[1727485828215,1.81594804,2703.8,2703.7,0.06520927]
[1727485828532,0.65230576,2703.8,2703.3,4.51486]
[1727485828702,1.1623755,2703.7,2703.3,4.51486]
[1727485828897,1.1623755,2703.7,2703.4,0.06554665]
[1727485829138,1.1623755,2703.7,2703.3,4.51486]
[1727485829338,1.1623755,2703.7,2703.5,0.06543418]
[1727485829640,2.23900116,2703.7,2703.6,0.06532172]
[1727485829843,1.1623755,2703.7,2703.6,0.06532172]
[1727485830315,1.1623755,2703.7,2703.3,4.51486]
[1727485830732,1.1623755,2703.7,2703.4,0.06554665]
[1727485831536,1.1623755,2703.7,2703.4,1.72597095]
[1727485832455,1.65572295,2703.7,2703.4,1.72597095]
[1727485833836,1.65572295,2703.7,2703.4,5.42499095]
[1727485834941,1.1623755,2703.6,2703.4,5.42499095]
[1727485835138,1.65572295,2703.7,2703.4,5.42499095]
[1727485837054,1.1623755,2703.6,2703.4,5.42499095]
[1727485837847,1.1623755,2703.6,2703.5,3.6989]
[1727485838020,1.1623755,2703.7,2703.5,4.5146]
[1727485838219,1.1623755,2703.7,2703.6,5.42452386]
[1727485840413,1.1623755,2703.8,2703.7,4.51433]
[1727485840615,1.1623755,2704.0,2703.7,6.23977911]
[1727485840853,1.1623755,2704.0,2703.9,5.3587843]
[1727485841355,1.1623755,2704.0,2703.9,5.42356069]
[1727485842023,1.1623755,2704.0,2703.9,1.72520069]
[1727485842230,4.1623755,2704.1,2703.9,1.72520069]
[1727485843249,4.1623755,2704.1,2703.9,1.6604243]
[1727485843409,1.1623755,2704.0,2703.9,1.6604243]
[1727485844655,1.1623755,2704.0,2703.9,6.79915073]
[1727485844868,1.5547153,2704.3,2704.2,3.69795]
[1727485844869,1.1623755,2704.3,2704.2,3.69795]
[1727485845159,1.1623755,2704.5,2704.2,5.3583743]
[1727485845356,1.1623755,2704.4,2704.2,1.6604243]
[1727485845562,1.1623755,2704.3,2704.2,1.6604243]
[1727485845767,1.1623755,2704.4,2704.2,1.6604243]
[1727485846749,1.1623755,2704.4,2704.2,5.3582643]
[1727485846926,1.1623755,2704.5,2704.2,5.3582643]
[1727485847729,1.1623755,2704.5,2704.4,1.6604243]
[1727485850664,1.1623755,2704.6,2704.4,1.6604243]
[1727485851566,1.1623755,2704.5,2704.4,1.6604243]
[1727485852281,1.1623755,2704.5,2704.2,5.3582643]
[1727485852484,1.1623755,2704.5,2704.4,0.06385345]
[1727485852653,1.1623755,2704.5,2704.3,0.06396584]
[1727485853254,1.1623755,2704.6,2704.3,0.06396584]
[1727485853750,1.1623755,2704.5,2704.3,0.06396584]
[1727485854751,1.1623755,2704.6,2704.3,0.06396584]
[1727485855379,1.1623755,2704.6,2704.4,1.6604243]
[1727485855755,5.73282438,2704.6,2704.5,0.06374106]
[1727485856056,5.73282438,2704.6,2704.2,1.6604243]
[1727485856268,4.16205873,2704.5,2704.3,0.06367168]
[1727485856439,1.16205873,2704.5,2704.4,1.6604243]
[1727485856645,1.16205873,2704.6,2704.4,1.72398359]
[1727485856841,1.16205873,2704.6,2704.4,5.42162359]
[1727485857469,1.16205873,2704.6,2704.4,1.72398359]
[1727485858646,1.16205873,2704.5,2704.4,0.06355929]
[1727485858995,1.98605873,2704.6,2704.2,1.6604243]
[1727485859159,1.98605873,2704.6,2704.4,0.06356713]
[1727485859367,1.98605873,2704.6,2704.2,5.3583343]
[1727485859550,1.98605873,2704.6,2704.5,0.06345475]
[1727485859748,1.98605873,2704.6,2704.2,5.3583343]
[1727485859985,1.98605873,2704.6,2704.5,0.06345475]
[1727485860192,4.52147,2704.6,2704.2,1.6604243]
[1727485860374,6.99366439,2704.6,2704.5,0.06345475]
[1727485860582,6.99366439,2704.6,2704.2,1.6604243]
[1727485860905,0.824,2704.6,2704.0,1.6604243]
[1727485861057,4.85979293,2704.5,2704.3,0.06365991]
[1727485861402,4.85979293,2704.5,2704.0,1.6604243]
[1727485861554,1.16225293,2704.2,2703.7,3.69854]
[1727485861755,4.86028293,2704.2,2703.6,2.4833243]
[1727485861995,1.16225293,2704.0,2703.8,1.72245254]
[1727485862166,1.16225293,2704.1,2703.8,1.6604243]
[1727485862357,1.16225293,2704.1,2703.9,0.06196679]
[1727485862905,5.24763058,2704.2,2703.9,0.06196679]
[1727485862906,1.16225293,2704.0,2703.9,0.06196679]
[1727485863398,1.16225293,2704.1,2703.9,0.06196679]
[1727485863696,1.98625293,2704.0,2703.9,0.06196679]
[1727485863866,1.98625293,2704.0,2703.6,1.6604243]
[1727485864066,1.98625293,2704.0,2703.7,0.06219167]
[1727485864470,1.16225293,2703.9,2703.7,0.06219167]
[1727485864971,1.98625293,2704.0,2703.7,0.06219167]
[1727485865565,1.16225293,2703.9,2703.7,0.06219167]